bitfinex-derivatives/quotes_ETHF0:USTF0_20240920
["timestamp","ask_amount","ask_price","bid_price","bid_amount"]
[1726832253016,0.39333,2542.1,2542.0,2.03518868]
[1726832253224,0.39333,2542.1,2542.0,3.58002328]
[1726832253520,0.39333,2542.1,2542.0,6.64002328]
[1726832253911,0.39333,2542.1,2542.0,6.63999039]
[1726832255113,0.39331,2542.1,2542.0,5.09514579]
[1726832255320,0.39331,2542.1,2542.0,6.63998039]
[1726832255715,0.80081,2542.2,2542.1,0.39331]
[1726832255920,0.80081,2542.2,2542.1,1.03128386]
[1726832256219,0.80081,2542.2,2542.1,0.39331]
[1726832256220,0.8008,2542.2,2542.1,0.39331]
[1726832256719,3.2078,2542.3,2542.2,0.3933]
[1726832256921,3.60109,2542.3,2542.2,3.4533]
[1726832257222,3.2078,2542.3,2542.2,3.4533]
[1726832258618,3.2078,2542.3,2542.2,7.3869]
[1726832258918,0.39325,2542.6,2542.5,0.39324]
[1726832259113,0.39325,2542.6,2542.5,3.45324]
[1726832263526,0.39323,2542.6,2542.5,3.85634]
[1726832264529,0.39323,2542.6,2542.5,4.88762386]
[1726832266927,0.39322,2542.7,2542.6,0.39322]
[1726832267132,0.39322,2542.7,2542.6,3.06]
[1726832267931,0.39322,2542.7,2542.6,3.45323]
[1726832269430,1.5803,2542.8,2542.7,0.39322]
[1726832271135,0.39322,2542.7,2542.6,3.45322]
[1726832273636,1.58031,2542.8,2542.7,0.39322]
[1726832273825,0.39322,2542.7,2542.6,3.45322]
[1726832274432,1.58032,2542.8,2542.7,0.39322]
[1726832274634,0.3928,2542.8,2542.7,0.39322]
[1726832274841,3.9719,2543.0,2542.9,0.39319]
[1726832275041,3.2078,2543.0,2542.9,0.39319]
[1726832275247,3.60097,2543.0,2542.9,0.39319]
[1726832275433,3.2078,2543.0,2542.9,0.39319]
[1726832275752,3.2078,2543.0,2542.9,4.73069]
[1726832276238,3.2078,2543.0,2542.9,5.71367]
[1726832277135,3.2078,2543.0,2542.9,6.69665]
[1726832277341,3.2078,2543.3,2543.2,0.39314]
[1726832277541,3.2078,2543.3,2543.2,3.45314]
[1726832278334,3.60093,2543.3,2543.2,4.48442386]
[1726832278536,3.60093,2543.3,2543.2,3.45314]
[1726832278731,3.60093,2543.3,2543.2,3.06]
[1726832278941,0.39316,2543.1,2543.0,4.48444386]
[1726832279128,0.39316,2543.1,2543.0,3.45316]
[1726832279331,0.39315,2543.2,2543.0,3.45316]
[1726832279534,0.39316,2543.1,2543.0,3.45317]
[1726832279744,0.39315,2543.2,2543.0,3.45317]
[1726832280833,0.39316,2543.1,2543.0,3.45317]
[1726832281033,0.39315,2543.2,2543.0,3.45317]
[1726832281234,0.39316,2543.1,2543.0,3.45317]
[1726832281834,0.39315,2543.2,2543.0,3.45317]
[1726832282247,0.39315,2543.2,2543.1,0.39316]
[1726832282743,0.39315,2543.2,2543.0,3.45316]
[1726832283243,0.39316,2543.1,2543.0,3.45316]
[1726832284245,0.39317,2543.1,2543.0,3.06]
[1726832284747,1.37617,2542.9,2542.8,3.06]
[1726832285247,1.37627,2542.7,2542.6,4.198]
[1726832285447,1.37627,2542.7,2542.4,0.39325]
[1726832285448,0.39325,2542.5,2542.4,0.39325]
[1726832285838,0.4084,2542.6,2542.5,0.39325]
[1726832285839,0.80165,2542.6,2542.5,0.39325]
[1726832286040,0.80165,2542.6,2542.5,3.06]
[1726832287642,1.18705,2542.6,2542.5,3.06]
[1726832289543,1.18705,2542.6,2542.5,3.45325]
[1726832289852,1.18705,2542.6,2542.5,3.06]
[1726832290439,0.4084,2542.6,2542.5,3.45325]
[1726832290641,0.39321,2542.8,2542.5,3.06]
[1726832290857,0.39321,2542.8,2542.7,3.06]
[1726832291652,0.39321,2542.8,2542.7,3.45322]
[1726832292245,1.2095,2542.9,2542.8,0.3932]
[1726832292447,1.2095,2542.9,2542.7,3.06]
[1726832292448,0.8163,2542.9,2542.7,3.45321]
[1726832292648,0.3932,2542.8,2542.7,3.45321]
[1726832293043,0.3932,2542.8,2542.7,3.06]
[1726832293547,1.37622,2542.8,2542.7,3.06]
[1726832293744,0.39323,2542.6,2542.5,3.06]
[1726832294552,0.39323,2542.6,2542.5,3.45325]
[1726832295056,0.39323,2542.6,2542.5,3.06]
[1726832295257,1.37632,2542.6,2542.5,3.06]
[1726832295762,1.37632,2542.6,2542.5,3.45325]
[1726832296261,0.39323,2542.6,2542.5,3.45325]
[1726832298753,0.39323,2542.6,2542.5,3.06]
[1726832299154,0.98309,2542.6,2542.3,1.20557]
[1726832299363,0.98309,2542.6,2542.4,3.45327]
[1726832299364,0.7792,2542.5,2542.4,3.45327]
[1726832299577,1.37644,2542.4,2542.2,1.03128386]
[1726832299859,0.39331,2542.1,2542.0,6.02210386]
[1726832300057,0.39331,2542.1,2542.0,3.85282]
[1726832300256,0.39331,2542.1,2542.0,3.4595]
[1726832300445,0.39331,2542.1,2542.0,3.85283]
[1726832300761,1.18321,2542.1,2542.0,3.06]
[1726832302253,2.1665,2542.1,2542.0,3.06]
[1726832302464,0.98334,2542.0,2541.7,1.03128386]
[1726832302660,0.39339,2541.7,2541.4,4.59141]
[1726832302959,3.2078,2541.5,2541.2,0.4075]
[1726832303151,0.39342,2541.4,2541.2,0.4075]
[1726832303349,0.39342,2541.4,2541.1,3.4522]
[1726832306549,3.2078,2541.5,2541.1,3.4522]
[1726832307062,0.39342,2541.4,2541.1,3.4522]
[1726832309258,3.2078,2541.5,2541.1,3.4522]
[1726832309461,0.39343,2541.4,2541.1,3.4522]
[1726832310061,0.39344,2541.3,2541.1,3.4522]
[1726832311060,0.39343,2541.4,2541.1,3.4522]
[1726832311654,0.39344,2541.3,2541.1,3.4522]
[1726832312453,0.39343,2541.4,2541.1,3.4522]
[1726832312654,0.39344,2541.3,2541.1,3.4522]
[1726832312864,0.39344,2541.3,2541.1,3.84567]
[1726832313053,3.2078,2541.5,2541.1,3.84566]
[1726832313054,0.39343,2541.4,2541.1,3.84566]
[1726832313250,0.39343,2541.4,2541.1,3.4522]
[1726832313251,0.39342,2541.4,2541.1,3.4522]
[1726832313455,3.2078,2541.5,2541.1,3.84566]
[1726832313666,0.39342,2541.4,2541.1,3.84566]
[1726832314360,0.39342,2541.4,2541.2,0.39345]
[1726832315362,0.39342,2541.4,2541.1,3.84566]
[1726832315563,0.39342,2541.4,2541.2,0.39345]
[1726832315759,3.6145,2541.5,2541.3,3.45343]
[1726832315760,4.00791,2541.5,2541.3,3.45343]
[1726832315960,3.2078,2541.5,2541.3,3.06]
[1726832316268,3.2078,2541.5,2541.4,0.39342]
[1726832316461,3.2078,2541.5,2541.4,0.80602]
[1726832316966,3.2078,2541.5,2541.4,0.4126]
[1726832317172,3.6012,2541.5,2541.3,3.45342]
[1726832317661,3.2078,2541.5,2541.4,0.39342]
[1726832318268,3.2078,2541.5,2541.4,3.9344]
[1726832318574,0.767,2541.9,2541.4,4.91795]
[1726832318866,3.2078,2542.0,2541.9,0.39334]
[1726832319266,3.2078,2542.0,2541.9,0.78754]
[1726832319567,3.2078,2542.0,2541.9,4.72114]
[1726832319755,4.3546,2542.4,2542.1,0.39331]
[1726832319958,4.3546,2542.4,2542.1,3.45331]
[1726832320160,0.3933,2542.2,2542.1,3.45331]
[1726832320571,4.3546,2542.4,2542.1,3.45331]
[1726832320572,0.39329,2542.3,2542.2,0.3933]
[1726832320880,4.74788,2542.4,2542.2,0.39329]
[1726832321061,0.39328,2542.3,2542.2,0.39329]
[1726832321260,0.39328,2542.3,2542.1,3.4533]
[1726832321865,4.74788,2542.4,2542.2,0.3933]
[1726832322068,0.39328,2542.3,2542.2,0.3933]
[1726832322268,4.74788,2542.4,2542.2,0.3933]
[1726832322568,0.39329,2542.3,2542.1,3.06]
[1726832322764,4.3546,2542.4,2542.2,0.39329]
[1726832322959,4.3546,2542.4,2542.1,3.45331]
[1726832323267,0.39329,2542.3,2542.1,3.06]
[1726832323472,0.39329,2542.3,2542.2,0.3933]
[1726832324358,4.3546,2542.4,2542.2,0.3933]
[1726832324758,4.3546,2542.4,2542.1,3.4533]
[1726832325164,0.3933,2542.2,2542.1,3.4533]
[1726832325360,0.39331,2542.1,2542.0,0.4085]
[1726832325560,0.39333,2542.0,2541.9,3.45334]
[1726832325760,0.39333,2542.0,2541.9,3.06]
[1726832326281,0.39333,2542.0,2541.9,3.45334]
[1726832326464,0.39333,2542.0,2541.7,3.06]
[1726832326465,0.39336,2541.8,2541.7,3.06]
[1726832328260,0.39336,2541.8,2541.3,4.1263]
[1726832328261,1.76709,2541.9,2541.5,3.06]
[1726832328576,0.77548,2541.7,2541.5,3.06]
[1726832328877,0.77548,2541.7,2541.5,3.4534]
[1726832329767,0.3821,2541.7,2541.6,0.39339]
[1726832329972,0.3821,2541.7,2541.5,3.06]
[1726832330169,0.3821,2541.7,2541.6,0.39339]
[1726832330569,0.39336,2541.8,2541.6,0.39339]
[1726832330875,0.7837,2541.9,2541.8,3.06]
[1726832331070,0.7837,2541.9,2541.8,3.45336]
[1726832331277,0.80463,2542.0,2541.8,3.06]
[1726832331759,3.60112,2542.1,2541.8,3.06]
[1726832331966,0.7829,2542.3,2542.0,3.06]
[1726832332166,0.39331,2542.2,2542.0,3.06]
[1726832332365,0.7829,2542.3,2542.0,3.06]
[1726832333366,0.39331,2542.1,2542.0,3.06]
[1726832336967,0.39331,2542.2,2542.0,3.45333]
[1726832337273,0.39331,2542.2,2542.0,3.06]
[1726832337472,0.39331,2542.1,2542.0,3.06]
[1726832340172,0.39331,2542.1,2542.0,3.45333]
[1726832340379,0.39331,2542.1,2542.0,3.06]
[1726832340878,3.60111,2542.1,2542.0,3.06]
[1726832341278,3.2078,2542.1,2542.0,3.45333]
[1726832341576,3.2078,2542.1,2542.0,3.86803]
[1726832341972,0.80455,2542.5,2542.1,0.98329]
[1726832342285,0.4113,2542.5,2542.4,3.06]
[1726832342580,0.80455,2542.5,2542.4,3.06]
[1726832344772,0.4113,2542.5,2542.4,3.06]
[1726832344983,0.4113,2542.5,2542.4,3.45327]
[1726832346386,0.80455,2542.5,2542.4,3.45327]
[1726832346585,0.4113,2542.5,2542.4,3.45327]
[1726832346785,3.2078,2542.7,2542.6,0.39323]
[1726832347087,3.2078,2542.7,2542.6,3.45323]
[1726832348084,1.1907,2543.0,2542.9,0.39319]
[1726832348277,1.58387,2543.0,2542.9,3.45319]
[1726832348982,1.58387,2543.0,2542.9,3.06]
[1726832349188,0.39319,2542.9,2542.8,3.45319]
[1726832349589,1.58388,2543.0,2542.8,3.45319]
[1726832349889,1.58388,2543.0,2542.9,0.39319]
[1726832350193,1.58388,2543.0,2542.8,3.45319]
[1726832350779,1.1907,2543.0,2542.9,0.39319]
[1726832350984,1.58387,2543.0,2542.9,0.39319]
[1726832351285,0.39317,2543.0,2542.9,3.85408]
[1726832351992,1.19037,2543.1,2542.9,3.85408]
[1726832352380,1.19037,2543.1,2543.0,0.39317]
[1726832352586,1.19037,2543.1,2542.9,3.4609]
[1726832352786,3.2078,2543.0,2542.9,3.85408]
[1726832352986,0.7972,2543.1,2542.9,3.4609]
[1726832353187,1.19037,2543.1,2542.9,3.85408]
[1726832353392,1.19037,2543.1,2542.9,3.85407]
[1726832353591,1.19036,2543.1,2542.9,3.4609]
[1726832353889,1.19036,2543.1,2542.9,3.85408]
[1726832353890,0.39317,2543.0,2542.9,3.85408]
[1726832354794,0.39317,2543.0,2542.9,3.45318]
[1726832355383,1.19037,2543.1,2543.0,0.39317]
[1726832355696,0.7972,2543.1,2543.0,0.39317]
[1726832355891,1.19036,2543.1,2543.0,0.3894]
[1726832357203,0.7972,2543.1,2543.0,0.78257]
[1726832357499,0.78746,2543.1,2543.0,0.78257]
[1726832357793,0.78746,2543.1,2543.0,0.7846]
[1726832357998,0.78746,2543.1,2543.0,1.17777]
[1726832357999,0.3943,2543.1,2543.0,1.17777]
[1726832358295,0.78746,2543.1,2543.0,0.7846]
[1726832359000,0.39316,2543.1,2543.0,1.17776]
[1726832359197,0.39316,2543.1,2543.0,0.7846]
[1726832359891,0.39317,2543.0,2542.9,3.45319]
[1726832360092,1.38727,2543.2,2542.8,3.06]
[1726832360093,0.3932,2542.9,2542.8,3.06]
[1726832361197,0.3883,2543.0,2542.8,3.06]
[1726832361500,0.3883,2543.0,2542.9,0.39319]
[1726832361689,0.39316,2543.1,2542.9,0.79359]
[1726832361889,0.39316,2543.1,2543.0,3.06]
[1726832362299,1.18585,2543.2,2543.0,3.45316]
[1726832362604,1.18585,2543.2,2543.1,0.39316]
[1726832362804,1.18586,2543.2,2543.0,3.45317]
[1726832362996,1.18586,2543.2,2543.0,3.84547]
[1726832363197,1.18586,2543.2,2543.0,3.84546]
[1726832363398,0.39316,2543.1,2543.0,3.84546]
[1726832363993,0.39316,2543.1,2543.0,3.06]
[1726832366405,0.39316,2543.1,2543.0,3.45317]
[1726832366601,0.39316,2543.1,2543.0,3.06]
[1726832367208,1.18585,2543.2,2543.1,0.39316]
[1726832368201,0.39316,2543.1,2543.0,3.06]
[1726832368403,0.7927,2543.2,2543.0,3.45316]
[1726832368805,0.39316,2543.1,2543.0,3.45316]
[1726832369209,1.18585,2543.2,2543.0,3.45316]
[1726832369411,1.18585,2543.2,2543.1,0.39316]
[1726832370802,0.7927,2543.2,2543.1,0.39316]
[1726832371104,0.3883,2543.2,2543.1,0.39316]
[1726832371308,0.78144,2543.2,2543.1,0.77046]
[1726832371619,0.3883,2543.2,2543.1,0.77046]
[1726832372001,3.5865,2543.3,2543.1,0.77046]
[1726832372210,0.39314,2543.2,2543.1,0.77046]
[1726832372402,3.97964,2543.3,2543.1,0.77046]
[1726832372709,0.39314,2543.2,2543.1,0.77046]
[1726832373400,1.37606,2543.1,2543.0,3.06]
[1726832373601,1.77126,2543.1,2543.0,3.06]
[1726832375009,0.78836,2543.1,2543.0,3.06]
[1726832375211,1.77126,2543.1,2543.0,3.06]
[1726832376701,0.39317,2543.0,2542.9,0.39318]
[1726832376902,0.77537,2543.0,2542.9,0.39318]
[1726832377506,0.3822,2543.0,2542.9,0.39318]
[1726832378111,0.77537,2543.0,2542.9,0.39318]
[1726832378507,0.39319,2542.9,2542.8,3.45319]
[1726832378710,0.77538,2543.0,2542.9,0.39319]
[1726832379605,0.39319,2542.9,2542.8,3.45319]
[1726832380005,0.80679,2542.9,2542.8,3.06]
[1726832380413,0.80679,2542.9,2542.8,3.4532]
[1726832381113,0.80679,2542.9,2542.8,3.06]
[1726832381910,0.39322,2542.7,2542.6,3.4498]
[1726832382111,0.39322,2542.7,2542.5,0.39324]
[1726832382112,0.39325,2542.6,2542.5,0.39324]
[1726832382303,0.78475,2542.6,2542.5,0.39324]
[1726832382510,0.39325,2542.5,2542.4,3.83625]
[1726832382813,1.17994,2542.6,2542.5,0.39325]
[1726832383610,0.78473,2542.6,2542.5,0.39325]
[1726832383809,0.78473,2542.6,2542.4,3.443]
[1726832384015,0.39325,2542.5,2542.4,3.83625]
[1726832384615,0.39323,2542.6,2542.5,0.39324]
[1726832385014,3.60103,2542.7,2542.5,0.39324]
[1726832385203,3.60103,2542.7,2542.6,3.06]
[1726832385519,0.39323,2542.7,2542.6,3.06]
[1726832386616,3.60103,2542.7,2542.6,3.45323]
[1726832386814,0.4043,2542.8,2542.6,3.45323]
[1726832387015,0.4043,2542.8,2542.7,0.39322]
[1726832387319,0.3932,2542.9,2542.8,0.3932]
[1726832387518,0.3932,2542.9,2542.8,3.06]
[1726832387705,0.98302,2542.8,2542.6,1.03128386]
[1726832388014,0.39325,2542.5,2542.4,4.47428386]
[1726832388211,1.37638,2542.5,2542.4,1.41428386]
[1726832388419,0.39327,2542.4,2542.3,1.03128386]
[1726832389123,0.39328,2542.3,2542.2,3.06]
[1726832391521,0.39328,2542.3,2542.2,3.4533]
[1726832391718,0.39328,2542.3,2542.2,3.06]
[1726832392312,0.39331,2542.1,2542.0,3.06]
[1726832392618,3.2078,2542.1,2541.8,4.09128386]
[1726832392912,0.39334,2541.9,2541.8,3.06]
[1726832393123,1.3767,2541.9,2541.8,3.06]
[1726832393317,0.39337,2541.7,2541.6,3.4386]
[1726832393821,0.80827,2541.7,2541.6,3.06]
[1726832400418,0.7735,2542.0,2541.6,3.06]
[1726832400623,1.16683,2542.0,2541.9,3.06]
[1726832400823,3.2078,2542.2,2541.9,3.06]
[1726832401020,3.2078,2542.2,2542.1,3.06]
[1726832401524,3.2078,2542.2,2542.1,3.4726]
[1726832401721,3.2078,2542.5,2542.1,3.4726]
[1726832402039,3.2078,2542.5,2542.4,3.06]
[1726832402040,3.60106,2542.5,2542.4,3.06]
[1726832402520,3.2078,2542.5,2542.4,3.06]
[1726832403018,3.60105,2542.5,2542.4,3.06]
[1726832403629,3.2078,2542.5,2542.4,3.06]
[1726832403831,3.2078,2542.5,2542.4,3.45327]
[1726832404726,3.2078,2542.5,2542.4,3.06]
[1726832404936,3.2078,2542.5,2542.4,3.45327]
[1726832406327,0.39324,2542.6,2542.4,3.45327]
[1726832407327,0.80873,2542.7,2542.4,3.45327]
[1726832407529,0.80873,2542.7,2542.5,0.3763]
[1726832407718,0.80873,2542.7,2542.5,0.7555]
[1726832408521,0.39323,2542.6,2542.5,0.7555]
[1726832408728,0.39325,2542.5,2542.4,3.06]
[1726832408922,0.78225,2542.5,2542.4,3.06]
[1726832409631,0.39328,2542.4,2542.2,3.4533]
[1726832409821,4.57994,2542.5,2542.2,3.06]
[1726832410022,0.39327,2542.4,2542.2,3.4533]
[1726832410333,0.39328,2542.4,2542.2,3.4533]
[1726832410832,0.78226,2542.5,2542.2,3.06]
[1726832411130,0.39327,2542.4,2542.2,3.45329]
[1726832411532,0.39327,2542.4,2542.3,0.39328]
[1726832412321,0.4155,2542.7,2542.2,3.06]
[1726832412632,0.39324,2542.6,2542.4,3.45326]
[1726832412829,0.3806,2542.7,2542.5,0.39324]
[1726832413034,0.3806,2542.7,2542.5,0.78514]
[1726832413526,0.39323,2542.6,2542.5,0.3919]
[1726832413921,0.98309,2542.6,2542.4,3.06]
[1726832414132,0.39325,2542.5,2542.4,3.06]
[1726832414434,0.39328,2542.3,2542.2,0.3919]
[1726832414824,0.39331,2542.1,2542.0,3.06]
[1726832415440,0.39333,2542.0,2541.9,4.59134]
[1726832415631,0.39334,2541.9,2541.8,3.86486]
[1726832416638,0.39334,2541.9,2541.8,3.4715]
[1726832417226,3.6011,2542.2,2541.8,3.4715]
[1726832417227,0.39333,2542.0,2541.8,3.4715]
[1726832417630,0.39333,2542.0,2541.8,3.86484]
[1726832417831,0.39334,2541.9,2541.8,3.86484]
[1726832418032,0.39334,2541.9,2541.8,3.4715]
[1726832419133,0.39336,2541.8,2541.7,3.4641]
[1726832419334,1.18296,2541.8,2541.7,3.06]
[1726832419727,1.18296,2541.8,2541.7,3.45337]
[1726832419932,4.19106,2542.2,2541.8,0.39335]
[1726832420141,0.7896,2542.1,2541.8,3.84595]
[1726832420445,1.77289,2542.1,2541.8,3.4526]
[1726832420633,0.39333,2542.0,2541.8,3.84594]
[1726832421034,0.39334,2541.9,2541.8,3.4526]
[1726832421442,0.39334,2541.9,2541.8,3.06]
[1726832424245,0.98336,2541.9,2541.7,3.06]
[1726832424441,0.39336,2541.8,2541.7,3.45337]
[1726832425239,0.39336,2541.8,2541.7,3.06]
[1726832427144,0.3934,2541.5,2541.4,3.45341]
[1726832427548,0.7756,2541.5,2541.4,3.45341]
[1726832428352,0.7756,2541.5,2541.4,3.45342]
[1726832429747,0.7756,2541.5,2541.4,3.06]
[1726832431256,0.7756,2541.5,2541.3,0.39343]
[1726832431257,0.39343,2541.4,2541.2,1.80203386]
[1726832431445,0.39343,2541.4,2541.3,3.06]
[1726832432655,0.77561,2541.5,2541.3,3.06]
[1726832433152,0.77561,2541.5,2541.3,3.45344]
[1726832433353,0.39342,2541.4,2541.3,3.06]
[1726832433651,0.3822,2541.5,2541.4,0.39342]
[1726832433855,0.39339,2541.6,2541.4,0.39342]
[1726832434150,0.39339,2541.6,2541.5,3.06]
[1726832434548,0.4124,2541.7,2541.5,3.4534]
[1726832434752,0.80578,2541.7,2541.5,3.06]
[1726832434953,0.80578,2541.7,2541.6,0.3956]
[1726832436156,0.39339,2541.6,2541.5,3.06]
[1726832438161,0.39342,2541.4,2541.3,3.4405]
[1726832440160,0.39342,2541.5,2541.3,3.83394]
[1726832440361,0.39342,2541.4,2541.3,3.4405]
[1726832440561,0.76742,2541.4,2541.3,3.4405]
[1726832442056,0.76742,2541.4,2541.3,3.83394]
[1726832442453,0.39346,2541.2,2541.1,3.06]
[1726832442653,0.98363,2541.2,2541.1,3.06]
[1726832442868,0.39347,2541.1,2541.0,0.39348]
[1726832443055,0.39347,2541.1,2540.9,3.4523]
[1726832443056,0.39348,2541.0,2540.9,3.84578]
[1726832443361,0.3825,2541.0,2540.9,3.84578]
[1726832443663,0.77598,2541.0,2540.9,3.4523]
[1726832444561,0.3825,2541.0,2540.9,3.8458]
[1726832444765,0.77598,2541.0,2540.9,3.8458]
[1726832445161,0.3825,2541.0,2540.9,3.8458]
[1726832445959,0.77598,2541.0,2540.9,3.8458]
[1726832447153,0.77598,2541.0,2540.9,3.4523]
[1726832447360,1.75969,2541.0,2540.9,3.06]
[1726832447959,0.77598,2541.0,2540.9,3.06]
[1726832448267,1.75969,2541.0,2540.9,3.06]
[1726832450061,0.3828,2541.1,2540.9,3.06]
[1726832450270,0.3987,2541.2,2541.0,0.4046]
[1726832450459,0.3987,2541.2,2541.1,3.45347]
[1726832450663,0.39345,2541.2,2541.1,3.85807]
[1726832450863,3.60125,2541.3,2541.2,0.39345]
[1726832451059,0.39345,2541.2,2541.1,3.85805]
[1726832451264,3.60125,2541.3,2541.2,0.39345]
[1726832451470,3.2078,2541.3,2541.1,3.4646]
[1726832451675,0.39345,2541.2,2541.1,3.85806]
[1726832451970,0.39349,2541.0,2540.9,3.06]
[1726832452477,1.60139,2541.0,2540.9,3.4535]
[1726832454275,1.60139,2541.0,2540.9,3.06]
[1726832454477,2.5851,2541.0,2540.9,3.06]
[1726832454973,5.7929,2541.0,2540.9,3.06]
[1726832455276,5.7929,2541.0,2540.9,3.4535]
[1726832455869,5.7929,2541.0,2540.9,3.06]
[1726832456470,0.3935,2540.9,2540.8,0.3935]
[1726832457975,0.3935,2540.9,2540.8,1.8135]
[1726832458478,4.80919,2541.0,2540.9,0.3935]
[1726832458781,4.4157,2541.0,2540.9,0.3935]
[1726832458976,3.2078,2541.0,2540.9,0.3935]
[1726832459181,0.39346,2541.2,2541.1,0.39346]
[1726832459380,0.39346,2541.2,2541.1,1.42]
[1726832459882,1.37709,2541.2,2541.1,1.42]
[1726832460079,1.37709,2541.2,2541.0,1.42]
[1726832460080,0.39346,2541.2,2541.0,1.42]
[1726832460280,1.18357,2541.1,2541.0,1.42]
[1726832460584,2.16724,2541.1,2541.0,1.42]
[1726832461384,0.3935,2540.9,2540.8,0.3935]
[1726832461582,0.3935,2540.9,2540.8,1.8135]
[1726832461878,0.39351,2540.8,2540.7,0.39352]
[1726832462081,0.77921,2540.8,2540.7,0.39352]
[1726832462274,3.2078,2541.0,2540.8,0.3935]
[1726832462481,3.9829,2541.0,2540.9,1.42]
[1726832462882,4.37639,2541.0,2540.9,1.42]
[1726832463276,5.3601,2541.0,2540.9,1.42]
[1726832463581,4.37639,2541.0,2540.8,1.42]
[1726832463773,0.3935,2540.9,2540.8,1.42]
[1726832463973,0.39351,2540.8,2540.7,0.39352]
[1726832465183,3.9829,2541.0,2540.9,0.3935]
[1726832465379,3.07,2541.7,2540.9,0.3935]
[1726832465380,3.60124,2541.3,2540.9,4.05375]
[1726832465572,3.2078,2541.3,2541.2,3.46345]
[1726832466979,3.60124,2541.3,2541.2,3.46345]
[1726832467281,3.60124,2541.3,2541.2,3.07]
[1726832467491,3.60124,2541.3,2541.1,0.39346]
[1726832467492,0.39345,2541.2,2541.1,0.39346]
[1726832468386,3.60125,2541.3,2541.2,0.39345]
[1726832468583,3.60125,2541.3,2541.2,3.46345]
[1726832468584,3.2078,2541.3,2541.2,3.46345]
[1726832468773,0.8025,2541.5,2541.4,0.39342]
[1726832468976,3.6012,2541.6,2541.5,0.3934]
[1726832468977,3.2078,2541.6,2541.5,0.3934]
[1726832469284,3.2078,2542.3,2542.1,0.3933]
[1726832469584,0.39331,2542.1,2542.0,3.46332]
[1726832469786,0.39331,2542.1,2542.0,3.07]
[1726832470484,0.98329,2542.1,2541.8,3.07]
[1726832470689,0.39334,2541.9,2541.8,3.07]
[1726832471684,0.39334,2541.9,2541.8,3.46336]
[1726832471881,0.39334,2541.9,2541.8,3.07]
[1726832472673,0.39336,2541.8,2541.7,0.39337]
[1726832472879,0.77906,2541.8,2541.7,0.39337]
[1726832473081,0.3857,2541.8,2541.5,4.5922]
[1726832473279,4.97385,2541.7,2541.3,4.50278386]
[1726832473483,4.97385,2541.7,2541.3,3.4715]
[1726832473684,3.2078,2541.7,2541.5,3.07]
[1726832473883,0.77907,2541.8,2541.7,0.39337]
[1726832474080,0.77907,2541.8,2541.7,3.46337]
[1726832474483,0.3857,2541.8,2541.7,3.46337]
[1726832474690,0.39335,2541.9,2541.7,3.46337]
[1726832474886,0.39335,2541.9,2541.7,3.46336]
[1726832475191,0.39336,2541.8,2541.7,3.46336]
[1726832475386,0.39335,2541.9,2541.7,3.46336]
[1726832475689,0.39336,2541.8,2541.7,3.46336]
[1726832477088,0.39336,2541.8,2541.7,3.07]
[1726832478087,0.39337,2541.7,2541.6,0.39338]
[1726832478297,0.39337,2541.7,2541.5,3.07]
[1726832478298,0.79347,2541.7,2541.5,3.07]
[1726832478491,0.3791,2541.6,2541.5,3.4634]
[1726832481598,0.7926,2541.6,2541.5,3.4634]
[1726832482289,0.3791,2541.6,2541.5,3.4634]
[1726832482490,0.79348,2541.7,2541.6,0.39339]
[1726832483189,0.4145,2541.8,2541.7,0.39337]
[1726832483393,0.39335,2541.9,2541.8,0.39335]
[1726832483594,0.39335,2541.9,2541.8,0.4004]
[1726832485893,3.2078,2542.1,2542.0,0.39333]
[1726832486098,3.2078,2542.1,2541.9,3.46333]
[1726832486296,0.4136,2542.0,2541.9,3.46333]
[1726832487800,0.4136,2542.0,2541.9,3.46334]
[1726832488100,0.39336,2541.8,2541.7,3.4581]
[1726832488395,1.39693,2542.0,2541.7,3.85147]
[1726832488595,0.39335,2541.9,2541.7,3.85147]
[1726832488803,0.39336,2541.8,2541.7,3.4581]
[1726832489095,0.3985,2541.9,2541.7,3.85147]
[1726832489096,0.79185,2541.9,2541.7,3.85147]
[1726832489290,0.39336,2541.8,2541.7,3.4581]
[1726832489994,0.79116,2541.8,2541.7,3.4581]
[1726832490498,0.39339,2541.6,2541.5,3.07]
[1726832490696,0.39341,2541.5,2541.3,3.4725]
[1726832491002,0.39341,2541.5,2541.4,0.39342]
[1726832491003,0.79351,2541.5,2541.4,0.39342]
[1726832491503,0.4001,2541.5,2541.4,0.39342]
[1726832491896,3.2078,2541.8,2541.4,9.9344]
[1726832492095,0.39333,2542.1,2541.9,0.39334]
[1726832492298,0.39331,2542.1,2542.0,3.07]
[1726832493103,4.0048,2542.2,2542.0,3.07]
[1726832493298,4.39811,2542.2,2542.0,3.07]
[1726832493496,0.39331,2542.1,2542.0,3.46332]
[1726832496798,4.39811,2542.2,2542.0,3.46332]
[1726832497108,4.0048,2542.2,2542.1,0.39331]
[1726832497308,0.39326,2542.5,2542.1,0.3773]
[1726832497495,0.39325,2542.5,2542.4,3.46326]
[1726832497696,3.60105,2542.6,2542.5,0.39325]
[1726832497907,3.2078,2542.6,2542.5,0.39325]
[1726832498108,3.60103,2542.6,2542.5,0.39325]